{"text_format":"1","workbook":"xlsx","n_sheets":7,"sheets":["FY11-FY16","2017","2018","2019","2020","2021","Sheet1"],"not_rendered":{"charts":0,"images":0,"macros":1,"external_links":0,"defined_names":16,"comments":1,"pivot_tables":0},"unopened":[],"bounds":{"document_bytes":16777216,"sheet_cells":100000,"rows_first":2000,"rows_last":500,"rows_between":2000,"halvings":0,"cell_chars":16384,"cell_head_chars":4096},"cells_cut":0,"cells_raw":0,"read":"whole","date_system":"1900"}

{"sheet":"FY11-FY16","index":0,"n_rows":46,"n_cols":39,"rows_kept":46,"cut":false,"hidden":false,"merged":[[37,12,37,38],[0,1,0,38],[1,8,1,10],[1,12,1,38],[2,1,2,11],[2,12,2,23],[2,24,2,26],[2,27,2,37],[1,1,1,4],[1,6,1,7]]}
[null,"Stewardship and Oversight Plan:"]
[null,null,null,null,null,"Total Selected Construction:",{"$f":"SUM(J5:J37)*1000","v":792070000},null,null,null,null,null,"Last Updated : 11/16/2016 3:10:23 PM"]
[null," Prior FY STIP Projects",null,null,null,null,null,null,null,null,null,null,"Design",null,null,null,null,null,null,null,null,null,null,null,"Design Build",null,null,"Construction"]
[null,"District","Project # Contract ID Federal #","County","Route","Description","State FY","Engineering ($1,000)","ROW ($1,000)","Construction ($1,000)","Total ($1,000)","Notes","Conceptual Report   **","Access Justification Requests   *","Design Exceptions   *","Value Engineering (VE)   **","Experimental Features   *","Preliminary Plans  (Identify Percent Complete with FHWA Contact)   *","Bridge Type Size and Location (TS&L)   **","Final Plans, Specifications, and Estimate (PS&E) approval   *","Transportation Management Plan (Includes TTCP) *","Construction Authorization   *","Addenda   *","Financial plan (for approval if > $500M, for review/comment if > $100M)","Request for Qualifications (RFQ)   **","Request for Proposals (RFP)   *","Alternative Applicable Standards (AAS)   ***","Quality Management Plan (QMP)","Alternative Technical Concepts (ATCs) When applicable   *","Bid analysis and concurrence in award   ***","Initial Inspection","Intermediate Inspections","In-Depth Inspection","Final Inspection","Construction Change Orders   *","Value Engineering change proposals   *","Final Acceptance",null,"Project Contacts"]
[null,"NE","2I3055  c151120-B01c   I-70-3(235)","Montgomery","IS 70","Pavement improvements on eastbound lanes from the Callaway County line to 1.1 miles west of Rte.161 near Mineola. ",2016,94,0,1171,1256,null,null,null,null,null,null,null,null,null,null,null,null,null,null,null,null,"-","-","ü",null,null,"-","ü","ü","-",null,"Felix Gonzlez (FHWA), Keith Killen (MoDOT PM) Richard Domzalski (MoDOT RE)","Felix Gonzlez (FHWA); Keith Killen (MoDOT PM) Richard Domzalski (MoDOT RE)"]
[null,"NE","_3I2188_ c150220-B02c   I-70-3(241)","Montgomery","IS-70","Pavement improvements on westbound lanes from 1.1 miles east of Rte. F to the Callaway County line near New Florence. Involves bridges A2709.",2015,356,0,3880,{"$f":"SUM(H6:J6)","v":4236},"Recommended Federal Oversight at least through the preliminsry design stage to determine the impact to the interstate, and possible ovesight during construction - F. Gonzalez",null,null,null,null,null,null,null,null,null,null,null,null,null,null,null,null,null,"ü",null,null,null,"ü",null,"-","x",null,"_Felix Gonzlez (FHWA);_ Richard Domzalski (MoDOT RE)"]
[null,"NE","_3I2189_ c151120-B01c   I-70-3(235)","Montgomery","IS-70","Pavement improvements on eastbound lanes from 1.1 mile west of Rte. 161 to 2 miles east of Rte. F near New Florence. Let in required combination with 2I3055.",2016,333,0,3169,{"$f":"H7+I7+J7","v":3502},"This project is already shown in the STIP as a Federal Oversight. Recommended full Federal Oversight - F. Gonzalez 3 3/4 inch overlay.  Good project to maintain involvement in the NE District",null,null,null,null,null,"-",null,null,null,null,null,null,null,null,null,null,"-",null,null,null,"-","ü","ü","-",null,"Felix Gonzlez (FHWA), Keith Killen (MoDOT PM) Richard Domzalski (MoDOT RE)","Felix Gonzlez (FHWA); Keith Killen (MoDOT PM) Richard Domzalski (MoDOT RE)"]
[null,"NE","3P2198  150320-B04   19-4(15)","Montgomery",19,"Bridge and pavement improvements from 0.8 mile north of Rte. WW to 0.3 mile south of Rte. WW near New Florence. Project involves bridge J0953.",2015,979,460,5769,{"$f":"SUM(H8:J8)","v":7208},null,null,null,null,null,null,null,null,null,null,null,null,null,null,null,null,null,null,"ü","ü","ü",null,"ü","ü","ü","x",null,"Felix Gonzlez (FHWA); Richard Domzalski (MoDOT RE)"]
[null,"KC","4I1916   100820-403      I-70-1(200)","Jackson","IS-70","Bridge and pavement improvements on I-70 between I-435 and 31st Street and bridge improvements on Rte. 40 over the Blue River and the Manchester Trafficway in Kansas City. Design/Build project.",2015,9096,50,60017,69163,null,null,null,null,null,null,null,null,null,null,null,null,null,null,null,null,null,null,null,"ü","ü","ü","ü","ü","ü","x",null,"Kevin Irving (FHWA); Susan Barry  (MoDOT Project Director)"]
[null,"KC","_4I3005_ c141121-C01c    I-35-1(285)","Clay","IS-35","Interchange, ramp and auxiliary lane improvements from the I-435 interchange to the Pleasant Valley Road/South Liberty Parkway/US 69 interchange. $13,194,000 Economic Development funds, $4,200,000 Liberty and $5,000,000 MARC STP-Urban. Project involves bridges A0496 and LO501.",2015,5100,120,31075,36295,null,null,null,null,null,null,null,null,null,null,null,null,null,null,null,null,null,"ü","ü","ü","x","ü","x","x","x","x",null,"Kevin Irving (FHWA); Matt Daulton  (MoDOT RE)"]
[null,"KC","4I3022B 150821-C01     I435-1(310) ","Jackson","IS 435","Bridge improvements at Front Street, Rte. 24 and Rte. 78. $220,000 Open Container funds. Project involves bridges A1698, A1750 and A1682.",2016,548,0,3459,4007,null,null,null,null,null,null,null,null,null,"-",null,null,null,null,null,null,null,null,"ü","ü","ü","ü","-","x","-","x","Kevin Irving (FHWA),  Lee Ann Kell (MoDOT PM)","Kevin Irving (FHWA); Jon Voss (MoDOT RE)"]
[null,"KC","4I3023  c150123-C01c   I-35-1(288)","Clay","IS-35","Bridge improvements, including the addition of an auxiliary lane, widening of the existing bridges and pavement replacement, over Poe Street in Claycomo. Project involves twin bridges L0759.",2015,1016,0,8375,9391,null,null,null,null,null,null,null,null,null,null,null,null,null,null,null,null,null,"ü","ü","ü","x","ü","x","x","x","x",null,"Kevin Irving (FHWA); Matt Daulton  (MoDOT RE)"]
[null,"KC","4P1475 c140523-C06c   I-71-4(120)","Cass","IS-49","Signal improvements, replace bridge, and capacity improvements at the Rte. 291 interchange. Project involves bridge A1621. $10,510,000 Highways 71/291 Partners in Progress TDD.",2014,1727,1014,12796,15537,null,null,null,null,null,null,null,null,null,null,null,null,null,null,null,null,null,null,null,"ü","ü","ü","ü","x","-","x",null,"Kevin Irving (FHWA); John Voss (MoDOT RE)"]
[null,"KC","4P2247  150515-C05  FAF-71-4 (118)","Cass","IS-49","Construction of a new interchange at 211th Street from Rte. Y to Rte. J in Peculiar. Cost Share with Peculiar. $5.134 million Cost Share funds and $6.053 million city. MoDOT's maximum is $8.164 million.",2015,2228,304,9251,11783,"AJR Approved - DDI",null,null,null,null,null,null,null,null,null,null,null,null,null,null,null,null,"-","ü","ü","ü","ü","ü","x","ü","x",null,"Kevin Irving (FHWA); Jon Voss   (MoDOT RE)"]
[null,"KC","4P2247B 150515-C05  FAF-71-4 (118)","Cass","CRD 211 Street","Roadway improvements from the east outer road to School Road in Peculiar. Project funded with 100% city funds. Let in combination with 4P2247.",2015,320,57,1383,1760,null,null,null,null,null,null,null,null,null,null,null,null,null,null,null,null,null,"-","ü","ü","ü","ü","ü","x","ü","x",null,"Kevin Irving (FHWA); Jon Voss (MoDOT RE)"]
[null,"KC","4P2279 c140709-C01c 0691021","Platte",69,"Bridge improvements over the Missouri River. Project involves the Platte Purchase bridge A0450 and the Fairfax Bridge K0456. Potential Design/Build project. $35,215,000 from KDOT.",2015,3037,500,74052,77589,null,null,null,null,null,null,null,null,null,null,null,null,null,null,null,null,"ü",null,"ü","ü","x","x","x","x","x","x",null,"Ken Foster (FHWA);  Lisa Stupps (MoDOT Project Director)"]
[null,"CD","_5I2172_ 150603-D01      _I-70-3(222)_","Boone","IS-70","Bridge improvements over West Boulevard in Columbia. Design/Build project. Project involves bridge L0845 over West Boulevard.",2015,2091,10,18363,20464,"Design/Build",null,null,null,null,null,null,null,null,null,null,null,null,null,"ü","ü","ü",null,"ü","ü","ü","-","ü","ü","ü","x",null,"Charles Pursley, Mike McGee (FHWA); Travis Koestner (MoDOT PD)"]
[null,"CD","5P0820D 140919-D01 _50-3(85)_","Cole",50,"Interchange at Lafayette Street and capacity improvements from Monroe Street to Clark Avenue in Jefferson City. $999,829 from FY2010 Appropriations Bill Earmark Demo ID MO237. ",2015,0,0,16403,16403,"EIS",null,null,null,null,null,null,null,null,null,null,null,null,null,null,null,null,null,"ü","ü","-","ü","x","x","x","x",null,"Charles Pursley, Mike McGee (FHWA); Mike Dusenberg (MoDOT PM), Terry Imhoff (MoDOT RE)"]
[null,"SL","6I2005\n111021-F01\n0705330","St Louis","I-70","Bridge improvements on westbound Blanchette Bridge over the Missouri River. Project involves bridge L0561.",2011,6420,0,61714,68134,null,null,null,null,null,null,null,null,null,null,null,null,null,null,null,null,null,null,null,null,null,null,null,null,null,"x",null,"Greg Budd (FHWA); Niall Jansson (MoDOT RE)"]
[null,"SL","6I2104\n160122-F02\n0705335","St Louis","I-70","Bridge improvements at the I-170 interchange. Project involves bridges A2999, A3000, A3001, A3002, A3003, A3004, A3005, A3006, A3007, A3008 and A3009.",2016,939,0,5814,6753,null,null,null,null,null,null,null,null,null,null,null,null,null,null,null,null,null,null,null,null,null,"x",null,"x","x",null,null,"Dawn Perkins (FHWA);  Lee Hilner (MoDOT PM), Niall Jahsson (RE)"]
[null,"SL","6I2232\n150220-F01\n0705321","St. Louis","I-70","Bridge improvements at the I-270 directional interchanges. Project involves bridges A3749, A3750, A3752, A3753, A3743, A3744, A3746, A3747, A0180N, A0180S, A3745, A3748, A3765, A3729 and A3787.",2015,1925,0,9551,11476,"Recommend full FHWA O/S given that work is at a system interchange.  Construction O/S could be reduced if \"bridge improvements\" are minor in nature.  GBudd",null,null,null,null,null,null,null,null,null,null,null,null,null,null,null,null,null,null,null,null,null,null,null,null,"x",null,"Felix Gonzlez (FHWA);  Lee Hilner (MoDOT PM)  Niall Jahsson(RE)"]
[null,"SL","6I2276\n141121-F01\n0704193 ","St Charles","I-70","Pavement improvements from Rt. K to Rt. C",2014,288,0,3316,3604,"This one we should do a reduced level of O/S to make sure that MoDOT and St. Charles 1-way outer road proposal compliment each other, and to determine need to include MoDOT work into the current AJR projcess for the StChCo project.  Recommend O/S through preliminary plan stage.  GBudd",null,null,null,null,null,null,null,null,null,null,null,null,null,null,null,null,null,null,null,null,null,null,null,null,"x",null,"Felix Gonzalez (FHWA); Jim Wright (MoDOT RE)"]
[null,"SL","6I2326\n160122-F03\n0704194","St. Charles","I-70","Bridge Improvememnts at Fairgrounds Road and 5th Street. ",2016,175,0,1209,1384,null,null,null,null,null,null,null,null,null,null,null,null,null,null,null,null,null,null,null,"ü","x","ü","x","x","x","x",null,"Dawn Perkins (FHWA); Tim Schroeder  (MoDOT PM), John Lewis (MoDOT RE)"]
[null,"SL","6I2332\n160520-F02\n0444193","St. Louis City","I-44","Bridge improvements at the 3rd Street Viaduct. Project involves bridges L0361, A3162, A3351, A3352 and A3353. ",2016,2419,0,21626,24045,null,null,null,null,null,null,null,null,null,null,null,null,null,null,null,null,null,null,"ü","ü","x",null,"x","x","x","x",null,"Ken Foster (FHWA); Jeff Bohler (PM), Scott Washausen (MoDOT RE)"]
[null,"SL","6I2381\n140822-F01\n0641064","St Louis","I-64","Pavement improvements from Rt. 340 to Ballas Rd.  To be let in combinaation with J6I2434.  Combo w/ 6I2434",2015,619,0,4678,5297,"This project is already shown in the STIP as a full O/S project.  Recommend full O/S.  Will be  a combo with J6I2434.  Total cost of $33M+/-.",null,null,null,null,null,null,null,null,null,null,null,null,null,null,null,null,null,null,null,null,null,"x",null,null,"x",null,"Felix Gonzalez (FHWA); Tom Montes (MoDOT PM) John Lewis (MoDOT RE)"]
[null,"SL","6I2413\n6I2413B 130628-F01 0705333","St Louis City","I-70 and LKS","FY11 TIGER project: MoDOT - I-70 and ramp and JNEM park improvements, GRG - LKS improvements.  Project involves bridges A1510, A1511, A1512, A1513. $2 M Public Lands funds, $700 K FTA/Metra, and $20 M TIGER Grant.","2012\n2013\n5513-14\n5718-13\n5763-13",8557,300,53185,62042,"\nSee Grant Agreement No. 24\n0705(323) for J6I2413 PE and ROW match\n0705(332) for J6I2413B PE and ROW match",null,null,null,null,null,null,null,null,null,null,null,null,null,null,null,null,null,null,null,null,null,"x","x",null,"x",null,"Dawn Perkins (FHWA);  John Grana (MoDOT RE) and Russ Klein (MoDOT LPA Liaison)"]
[null,"SL","6I2423\n0444171","St Louis","I-44","Interchange improvements at I-44/Rte. 141, intersection improvements at Vance Rd./Rte.\n141 and pavement improvements along Rte. 141 from north of Vance Rd. to south of I-44.\nDesign/Build project. $2,550,000 Congestion Mitigation & Air Quality Improvement\nProgram funds.",2016,2966,1000,21534,25500,null,null,null,null,null,null,"ü","ü","ü","ü",null,"ü",null,null,null,null,"ü","-","ü","ü","x","x","x","x","x","x",null,"Felix Gonzalez (FHWA);\nJustin Wolf (MoDOT), David Simmons (MoDOT)"]
[null,"SL","6I2434\n140822-F01\n0641072","St Louis","I-64","Capacity improvements from Rt. 340 to I-270.  To be let in combination with J6I2381.  Combo w/ 6I2381",2015,3425,0,24136,27561,"This project is already shown in the STIP as a full O/S project.  Recommend full O/S.  Will be  a combo with J6I2381.  Total cost of $33M+/-.",null,null,null,null,null,null,null,null,null,null,null,null,null,null,null,null,null,null,null,null,null,"x",null,null,"x",null,"Felix Gonzalez (FHWA);  Tom Montes (MoDOT PM) John Lewis (MoDOT RE)"]
[null,"SL","6I3031\n151120-F01\n0444184","St Louis City","I-44","Rehabilitate bridges at the I-44/I-55 interchange. Project involves bridges A1542, A1536, A1092, A1535, and A1093.",2016,653,0,4202,4855,null,null,null,null,null,null,null,null,null,null,null,null,null,null,null,null,null,null,null,null,null,"ü",null,"x","x",null,null,"Dawn Perkins (FHWA); Jeff Bohler (MoDOT PM), Scott Washausen (MoDOT RE)"]
[null,"SL","6I3034B&C\n150515-F01\n0444182\n0444191","St Louis","I-44","Pavement and bridge improvements from Murdoch Avenue to Hampton Avenue. Project involves bridges A2368, A2318, A2394, A1739 and A1733.",2015,3714,5,31516,35235,"Full FHWA O/S recommended.  Gbudd",null,null,null,null,null,null,null,null,null,null,null,null,null,null,null,null,null,null,null,null,"ü",null,"x","x",null,null,"Dawn Perkins (FHWA); Jeff Bohler (MoDOT PM)  Scott Washausen (MoDOT RE)"]
[null,"SL","6I3034D\n160318-F02\n0444192","St. Louis","I-44","Pavement and bridge improvement from Murdoch to River Des Peres at BNSF railroad. Project involves bridges A1739 and A1733. ",2016,1296,57,15967,17320,null,null,null,null,null,null,null,null,null,null,null,null,null,null,null,null,null,null,null,null,null,"ü",null,"x","x",null,null,"Dawn Perkins (FHWA); Jeff Bohler (MoDOT PM), Scott Washausen (MoDOT RE)"]
[null,"SL","6P1436\n120710-F01\n0405103","St Charles","I-64","Construct new Boone Bridge and improve capacity from Rte. 94 to Spirit of St. Louis Boulevard. Design/Build project. Project involves bridge J1000.",2013,6355,1300,122960,130615,null,null,null,null,null,null,null,null,null,null,null,null,null,null,null,null,null,null,null,null,null,null,"ü","ü",null,"x",null,"Greg Budd (FHWA); Jim Gramaud (MoDOT RE)"]
[null,"SL","6P2321 & 6P2321B\n160520-F01\n0471072\n0471080","Franklin",47,"FY 14 TIGER project: Replace bridge over the Missouri River from Augusta Bottom road to Third Street in Washington. $10,000,000 TIGER VI funds, $500,000 Washington, $250,000 Franklin County and $50,000 Warren County. Project involves bridge K0969.",2016,6619,476,50195,57290,null,null,null,null,null,null,null,null,null,null,null,null,null,null,null,null,null,null,"ü","x","x","x","x","x","x","x",null,"Dawn Perkins (FHWA);  Shirley Norris (MoDOT PM), Tim Hellebusch (MoDOT RE)"]
[null,"SL","6S3047\n150515-F03\nS500035","St Charles","I-70","Intersection Improvements at I-70 westbound ramps and north outer road. $944,000 Congestion Mitigation and Air Quality Improvement Program funds.",2016,163,8,2150,2321,null,null,null,null,null,null,null,null,null,null,null,null,null,null,null,null,null,null,null,null,null,null,null,null,null,"x",null,"Felix Gonzalez (FHWA); Tim Schroeder (MoDOT PM)"]
[null,"SL","6U1028 c130206-F01c 3641035","St Charles",364,"Route 364 -Page Ave. Phase 3 - Design Build",2013,3679,35662,66000,105341,null,null,null,null,null,null,null,null,null,null,null,null,null,null,null,null,null,null,null,null,null,null,null,null,null,"x",null,"Felix Gonzalez (FHWA); Dave Simmons (MoDOT RE)"]
[null,"SW","_8P0683_ 140611-G01 FAF-60-2(62)","Greene",60,"Roadway improvements from County Road 243 to east of Rogersville. Design/Build project.",2014,3842,5180,28249,{"$f":"SUM(H36:J36)","v":37271},"CN is construction and RW cost",null,null,null,null,null,null,null,null,null,null,null,null,null,null,null,null,null,null,"ü","ü","ü","x","x","x","x",null,"Charles Pursley Mike McGee (FHWA), Sean Matlock (MoDOT Project Director)"]
[null,"SW",3200718,"Jasper","5 City Streets","FY12 TIGER project, Maiden Lane, Schifferdecker, 26th Street, 20th Stree RR Overpass, and 20th Street Transit","02HL-10  01HL-11  03TG\n01TG-12\n01TG-13",540,3297,14905,{"$f":"SUM(H37:J37)","v":18742},"See Grant Agreement No. 8",null,null,null,null,null,null,null,null,null,null,null,null,null,null,null,null,null,null,"ü","ü","-","ü","x","-","x",null,"Dawn Perkins (FHWA);  Jim McDiarmid (MoDOT LPA Liaison)"]
[null,null,null,null,null,null,null,null,null,null,null,null,"LEGEND"]
[]
[null,null,null,null,null,null,null,null,null,null,null,null,null,"x",null,"Action requiring FHWA involvement",null,null,null,null,null,null,null,null,null,null,"*",null,"Submittal requires FHWA approval"]
[]
[null,null,null,null,null,null,null,null,null,null,null,null,null,"ü",null," Action completed",null,null,null,null,null,null,null,null,null,null,"**",null,"Submittal for FHWA review/comment"]
[]
[null,null,null,null,null,null,null,null,null,null,null,null,null,"-",null," No FHWA approvals/actions were required",null,null,null,null,null,null,null,null,null,null,"***",null,"Submittal requires FHWA concurrence"]
[]
[null,null,null,null,null,null,null,null,null,null,null,null,null,"ü",null,"Additional FHWA approval action taken"]

{"sheet":"2017","index":1,"n_rows":45,"n_cols":38,"rows_kept":45,"cut":false,"hidden":false,"merged":[[29,38,29,50],[15,38,15,51],[36,12,36,37],[0,1,0,37],[1,1,1,4],[2,1,2,11],[2,24,2,26],[2,27,2,36],[2,12,2,23],[1,12,1,37],[1,6,1,7],[44,15,44,23],[42,15,42,24],[40,15,40,19],[38,15,38,23],[38,28,38,37],[40,28,40,37],[42,28,42,37],[43,28,44,37]]}
[null,"Stewardship and Oversight Plan"]
[null,null,null,null,null,"2017 Total Selected Construction Cost:                 2017 STIP Construction Award Amount:","$429,077,000    $727,100,000",null,null,null,null,null,"Last Updated : 11/16/2016 3:10:23 PM"]
[null," 2017 STIP Project",null,null,null,null,null,null,null,null,null,null,"Design",null,null,null,null,null,null,null,null,null,null,null,"Design Build",null,null,"Construction"]
[null,"District","Job No.","County","Route","Description","Anticipated Letting Month and State FY1","Engineering ($1,000)","ROW ($1,000)","Construction ($1,000)","Total ($1,000)","Notes","Conceptual Report   **","Access Justification Requests   *","Design Exceptions   *","Value Engineering (VE)   **","Experimental Features   *","Preliminary Plans (Identify Percent Complete with FHWA Contact)   *","Bridge Type, Size, and Location (TS&L)   **","Final Plans, Specifications, and Estimate (PS&E) approval   *","Transportation Management Plan (Includes TTCP) *","Construction Authorization   *","Addenda   *","Financial plan (for approval if > $500M, for review/comment if > $100M)","Request for Qualifications (RFQ)   **","Request for Proposals (RFP)   *","Alternative Applicable Standards (AAS)   ***","Alternative Technical Concepts (ATCs) When applicable   *","Bid analysis and concurrence in award   ***","Initial Inspection","Intermediate Inspections","In-Depth Inspection","Final Inspection","Construction Change Orders   *","Value Engineering change proposals   *","Final Acceptance",null,"Project Contacts"]
[null,"NW","1P0875  160624-A02  FAF-36-1(90)","Dekalb"," US 36","Replace bridge decks in the eastbound and westbound lanes over I‐35 in Cameron. Project involves bridge A1059. ","2016-06-16",255,0,1930,{"$f":"SUM(H5:J5)","v":2185},null,null,null,null,null,null,null,null,null,null,null,null,null,null,null,null,null,"ü","ü",null,"ü",null,null,null,null,null,"Kevin Irving (FHWA); Wes Moore (MoDOT PM)"]
[null,"NW","1S2192","Buchanan","IS 29","Bridge and ramp improvements at I‐29 interchange 1.0 mile east of Rt. 371 near Faucett, MO","2017-05-19",621,0,3135,{"$f":"SUM(H6:J6)","v":3756},null,"ü","-","x",null,null,"x",null,null,"x","x",null,null,null,null,null,null,"x","x","x","x","x","x","x","x",null,"Kevin Irving (FHWA); Wes Moore (MoDOT PM)"]
[null,"NE","2P3058B","Lincoln","US 61","Bridge improvements over Big Creek 1.5 miles south of Rte. U","2017-03-01",266,0,2134,2400,null,"x",null,"x",null,null,"x","x","x","x","x","x",null,null,null,null,null,"x","x",null,"x","x","x","x","x",null,"Felix Gozalez (FHWA);  Chris Knapp (PM)"]
[null,"NE","2P3082","Pike",79,"Replace bridge/ADA Transition Plan Improvements over Noix Creek 1.1 miles north of Rte. D in Louisiana. $124,000 Statewide TAP funds. Project involves bridge K0487 ","2017-03-01",343,1,2147,2491,null,"ü",null,"ü",null,null,"ü",null,null,"ü",null,null,null,null,null,null,null,null,null,null,null,"x","x","x","x",null,"Felix Gozalez (FHWA);  Kim Trainor (PM)"]
[null,"KC","_4I1980_   _160624-C01    I-435-1(319)","Clay","IS 435","Operational improvements to the interchange at Rte. 210. ",2017,2555,0,15003,{"$f":"SUM(H9:J9)","v":17558},"AJR required ",null,null,null,null,null,null,null,null,null,null,null,null,null,null,null,"x","ü","x","x","x","x","x","x","x",null,"Kevin Irving (FHWA);  Debbie Huffman  (MoDOT PM)"]
[null,"KC","4I3105","Platte","IS 29","Pavement improvements from Todd Creek to Vivion Road. ","2016-12-16",1268,0,11880,{"$f":"H10+J10","v":13148},null,"ü","ü","ü",null,null,"-",null,null,"ü","ü",null,null,null,null,null,"x","x","x",null,"x","x","x","x","x",null,"Kevin Irving (FHWA); Mark Fisher (MoDOT PM)"]
[null,"KC","4P2256","Jackson","IS-49","Interchange and bridge improvements at 155th Street in Grandview, Belton and Kansas City. Project involves bridge A0479.","2016-11-17",1659,36,8096,{"$f":"SUM(H11:J11)","v":9791},"Proposing DDI and Roundabout - Currently Diamond",null,"ü","ü",null,null,"ü","ü","ü","ü","ü","ü",null,null,null,null,null,"x","x",null,"x","x","x","x","x",null,"Kevin Irving (FHWA);  James Burgess  (MoDOT PM)"]
[null,"KC","4P2292","Jackson","US 50","Interchange improvements at Rte. 291 S. junction in Lee's Summit.  Project involves bridge A1483.","2017-02-17",2241,803,11397,{"$f":"SUM(H12:J12)","v":14441},null,null,null,"ü",null,null,null,null,"x","x","x","x",null,null,null,null,"x","x","x","x","x","x","x","x","x",null,"Kevin Irving (FHWA); Lee Ann Kell (MoDOT PM)"]
[null,"KC","4P2360","Cass","IS 49","Bridge improvements over the South Grand River N of Archie.  Project involves twin bridges A2642.","2017-01-01",853,0,5725,{"$f":"SUM(H13:J13)","v":6578},null,"ü",null,"x",null,"x","-","-","x","x","x","x",null,null,null,null,"x","x","x",null,"x","x","x","x","x",null,"Kevin Irving (FHWA); Allan Ludiker (MoDOT PM)"]
[null,"KC","4S3225  160803-C01 S301015 ","Jackson","CST Grand Avenue","Emergency bridge replacement on Grand Avenue over I-670. Project involves bridge A0820.",2017,1019,0,4550,{"$f":"SUM(H14:J14)","v":5569},null,null,null,null,null,null,null,null,null,null,null,null,null,null,null,null,null,null,null,null,"ü",null,null,null,null,null,"Kevin Irving (FHWA); Mark Fisher (MoDOT PM)"]
[null,"KC","4U1108C 160624-C07 FAF-45-1(34)","Platte","MO 45","Corridor improvements, including roadway widening and bicycle/pedestrian accommodations, from Rt. K to I-435 in Platte County",2017,2210,1145,9322,{"$f":"SUM(H15:J15)","v":12677},null,null,null,null,null,null,null,null,null,null,null,null,null,null,null,null,"-","ü","ü","x","x","x","x","x","x",null,"Kevin Irving (FHWA);  James Burgess  (MoDOT PM)"]
[null,"CD","5I3001","Boone","IS 70","Pavement improvements on the eastbound and westbound lanes from the Missouri River to near the St. Charles Road interchange in Columbia. ","2016-09-01",669,0,7889,{"$f":"SUM(H16:J16)","v":8558},null,"-",null,null,null,null,"-",null,null,"ü","ü",null,null,null,null,null,null,"ü","x",null,null,"x","x","x","x",null,"Charles Pursley, Mike McGee (FHWA); Mike Dusenberg (MoDOT PM)"]
[null,"SL","6I2377C\n0641070\n161021-F01","St Louis City","I-64","Bridge/ramp/capacity improvement from 4th Street to Illinois on the eastbound Poplar Street Bridge approaches. Project involves bridges A1500, A1501 and A1503.  Combo w/6I2377D, 6I3025, 6I3026",2017,5013,1000,30847,36860,"Full O/S recommended.  Gbudd",null,null,null,null,null,null,null,"ü","ü","ü","ü",null,null,null,null,null,"x","x","x",null,"x","x","x","x",null,"Dawn Perkins (FHWA); Jeff Bohler (MoDOT PM)"]
[null,"SL","6I2377D\nwithdrawn\n161021-F01","St Louis City","I-64","Bridge,  ramp, and capacity improvements from 4th Street to Illinois on the eastbound Poplar Street Bridge approaches. Project involves bridges A1500, A1501 and A1503.",2017,138,0,1869,2007,null,null,null,null,null,null,null,null,"ü","ü","-","ü",null,null,null,null,null,"x","x","x",null,"x","x","x","x",null,"Dawn Perkins (FHWA); Jeff Bohler (MoDOT PM)"]
[null,"SL","6I3025\n0553093\n161021-F01","St Louis City","I-55","Bridge maintenance on the Poplar Street Bridge over the Mississippi River. $2,965,000 of IDOT funds for construction. Project involves bridge A1500.",2017,393,0,5930,6323,"Will most likely be let in combo with J6I3026, below, so probably full O/S needed.",null,null,null,null,null,null,null,"ü","ü","ü","ü",null,null,null,null,null,"x","x","x",null,"x","x","x","x",null,"Dawn Perkins (FHWA); Jeff Bohler (MoDOT PM)"]
[null,"SL","6I3026\n0553092\n161021-F01","St Louis City","I-55","Bridge improvements on the eastbound Poplar Street bridge over Mississippi River. Project involves bridge A1500.",2017,790,0,15400,16190,"Major bridge crossing.  Recommend maintaining full O/S.  Gbudd",null,null,null,null,null,null,null,"ü","ü","ü","ü",null,null,null,null,null,"x","x","x",null,"x","x","x","x",null,"Dawn Perkins (FHWA); Jeff Bohler (MoDOT PM)"]
[null,"SL","6I3110\n0552105","Jefferson","I-55","Pavement improvements from Rte. Z to the St. Genevieve County Line.  Combo w/ 6I3131","2016-12-01",869,0,9453,10322,null,"ü",null,"ü",null,null,"ü",null,null,"ü","ü",null,null,null,null,null,null,null,null,null,"x",null,"x","x",null,null,"Dawn Perkins (FHWA); Shirley Norris (MoDOT PM)"]
[null,"SL","6I3113\n2705346","St. Louis","I-270","Pavement improvements from I-44 to I-55.  Combo w/ 6I3157","2016-12-01",1273,0,11079,12352,null,"ü",null,"ü",null,null,"ü",null,null,"ü","ü",null,null,null,null,null,null,null,null,null,"x",null,"x","x",null,null,"Dawn Perkins (FHWA); Tom Montes (PM)"]
[null,"SL","6I3114\n0444194","St. Louis","I-44","Pavement improvements from Rte. 141 to Rte. 109.","2016-11-01",866,0,6420,7286,null,"ü",null,"ü",null,null,"ü",null,null,"ü","ü",null,null,null,null,null,null,null,null,null,"x",null,"x","x",null,null,"Dawn Perkins (FHWA);  Tom Montes (PM)"]
[null,"SL","6I3131\n0552106","Jefferson","I-55","Bridge improvements for 21 bridges from north of Rte. Z near Pevely to Plattin Creek south of Rte. 67 at Crystal City. Includes bridges A1035, A0951, A0953, A0944, A0945, A0946, A0797, A0830, A0799, A2221 and A2222.   Combo w/ 6I3110","2016-12-01",1035,0,10553,11588,null,"ü",null,"ü",null,null,"ü",null,null,"ü","ü",null,null,null,null,null,null,null,null,null,"x",null,"x","x",null,null,"Dawn Perkins (FHWA); Shirley Norris (MoDOT PM)"]
[null,"SL","6I3133\n0704198\n161118-F01","St. Charles","I-70","Pavement and barrier wall improvements Mid Rivers Mall Drive to 5th Street.",2017,756,0,9761,10517,null,"-",null,"-",null,null,"ü",null,"ü","ü","ü",null,null,null,null,null,null,null,null,null,"x",null,"x","x",null,null,"Dawn Perkins (FHWA); Tim Schroeder (MoDOT PM)"]
[null,"SL","6I3136","St. Louis","I-270","Pavement  and barrier wall improvements from I-170 interchange to the Chain of Rocks Bridge.","2017-03-01",2155,0,16990,19145,null,"x",null,"x",null,null,"ü",null,"x","x",null,null,null,null,null,null,null,null,null,null,"x",null,"x","x",null,null,"Dawn Perkins (FHWA); Lee Hillner (MoDOT PM)"]
[null,"SL","6I3157\n2705348","St. Louis","I-270","Pavement improvements from Rte. 364 to I-44.  Combo w/ 6I3113","2016-12-01",2086,0,17735,19821,null,"ü",null,"ü",null,null,"ü",null,null,"ü","ü",null,null,null,null,null,null,null,null,null,"x",null,"x","x",null,null,"Dawn Perkins (FHWA); Tom Montes (PM)"]
[null,"SL","6P3071","St Charles",61,"New interchange at Rte. P and Peine Road and safety improvements at median crossovers from north of Peine Road to north of Rte. A in Wentzville. $4,331,337 Cost Share, $2,795,199 Wentzville and $3,500,000 St. Charles County.","2017-05-01",1808,788,11087,13683,null,null,"-",null,null,null,"x",null,"x","x","x","x",null,null,null,null,null,"x",null,null,"x",null,"x","x","x",null,"Dawn Perkins (FHWA); Tim Schroeder (MoDOT PM)"]
[null,"SL","6P3194\nS501013","Various","Various","Safety improvements on various routes in the St. Louis District. Potential Design Build.","2017-01-01",1998,0,21828,23826,null,null,"x","x","x","x","x",null,"x","x","x","x",null,"x","x","x",null,"x","x","x","x","x","x","x","x",null,"Dawn Perkins (FHWA);         Jim Gramaud (MoDOT RE)"]
[null,"SW","7I3049","Lawrence","IS 44","Eastbound bridge improvement over Spring River. Project involves bridge A0977. ","2016-11-01",677,0,2711,{"$f":"SUM(H30:J30)","v":3388},null,"ü",null,null,null,null,null,null,null,"x",null,null,null,null,null,null,null,null,null,null,"x",null,null,null,null,null,"Charles Pursley, Mike McGee (FHWA); Aaron Jaeger (MoDOT PM)"]
[null,"SW","_8I3000_   _151023-G05     I-44-2(263)","Greene","IS-44","Pavement improvements from west of Rte. 266 (Chestnut Expressway) to east of Rte. 125. $258,000 Open Container funds. October 23, 2015 Letting.",2017,608,0,7819,{"$f":"SUM(H31:J31)","v":8427},null,null,null,null,null,null,null,null,null,null,null,null,null,null,null,null,null,"ü","ü",null,null,"x","x","x","x",null,"Charles Pursley, Mike McGee (FHWA); Aaron Jaeger (MoDOT PM), Brad Gripka (MoDOT RE)"]
[null,"SW","8P2196","Greene",65,"Railroad crossing grade separation at Chestnut Expressway and BNSF railway 0.2 mile west of Rte. 65. Split out into 2 projects August 2015 - 8P2196B (non-PoDI) April 2016 letting/8P2196 (PoDI)September 2016 letting.","2015-09-01",903,4067,7189,{"$f":"SUM(H32:J32)","v":12159},null,null,null,"-",null,"-","ü","ü","ü","ü","ü","ü",null,null,null,null,"-","ü","x","x",null,"x","x","x","x",null,"Charles Pursley, Mike McGee (FHWA); Don Saiko (MoDOT PM), Brad Gripka  (MoDOT RE)"]
[null,"SW","8P3036","Greene","US 65","Interchange improvements at Rte. YY (Division Street). $1,519,395 Cost Share, $1,823,292\nSpringfield STP-Urban, $455,823 Springfield.","2017-05-01",336,1190,2880,{"$f":"SUM(H33:J33)","v":4406},null,null,null,"x",null,"x","ü",null,"x","x","x","x",null,null,null,null,"x","x","x",null,null,"x","x","x","x",null,"Charles Pursley, Mike McGee (FHWA);  Don Saiko (MoDOT PM)"]
[null,"SW","N/A Not in FMIS yet","Taney",76,"Highway 76 Country Boulevard Complete Streets (Spirit of 76)",2017,null,null,76015,{"$f":"SUM(H34:J34)","v":76015},null,null,null,null,"x",null,"x",null,"x","x","x","x","x",null,null,null,null,"x","x","x",null,null,"x","x","x",null,"Greg Budd (FHWA); Beth Schaller (MoDOT LPA Area Engineer)"]
[null,"SE","0I0956","Scott","IS 55","Interchange improvements south of Scott City. ","2017-05-01",2105,2696,11764,{"$f":"SUM(H35:J35)","v":16565},"AJR",null,"ü","x",null,"-","ü","ü","x","x","x","x",null,null,null,null,"x","x","x","x",null,"x","x","x","x",null,"Felix Gonzalez (FHWA);   Jason Williams (MoDOT PM) - Darius (RE)"]
[null,"SE","_0P2298_ 151023-H05 FAF-67-3(114)","St. Francois","US 67","Pavement improvements from St. Francois River Bridge to Jefferson County. October 23, 2015 Letting.",2017,1012,0,8284,{"$f":"SUM(H36:J36)","v":9296},null,null,null,null,null,null,null,null,null,null,null,null,null,null,null,null,null,"ü",null,null,null,"ü","ü","-","x",null,"Felix Gonzalez (FHWA);   Jason Williams (MoDOT PM) - Darius (RE)"]
[null,null,null,null,null,null,null,null,null,null,null,null,"LEGEND"]
[null,null,null,null,null,null,null,null,null,null,null,{"$f":"K38*0.8*1000","v":0}]
[null,null,null,null,null,null,null,null,null,null,null,null,null,"x",null,"Action requiring FHWA involvement",null,null,null,null,null,null,null,null,null,null,"*",null,"Submittal requires FHWA approval"]
[]
[null,null,null,null,null,null,null,null,null,null,null,null,null,"ü",null," Action completed",null,null,null,null,null,null,null,null,null,null,"**",null,"Submittal for FHWA review/comment"]
[]
[null,null,null,null,null,null,null,null,null,null,null,null,null,"-",null," No FHWA approvals/actions were required",null,null,null,null,null,null,null,null,null,null,"***",null,"Submittal requires FHWA concurrence"]
[null,null,null,null,null,null,null,null,null,null,null,null,null,null,null,null,null,null,null,null,null,null,null,null,null,null,null,null,"The anticipated  letting month may change based on the project schedule and progress"]
[null,null,null,null,null,null,null,null,null,null,null,null,null,"ü",null,"Additional FHWA approval action taken",null,null,null,null,null,null,null,null,null,null,1]

{"sheet":"2018","index":2,"n_rows":47,"n_cols":38,"rows_kept":47,"cut":false,"hidden":false,"merged":[[45,28,46,37],[38,12,38,37],[0,1,0,37],[1,1,1,4],[1,6,1,7],[2,1,2,11],[2,24,2,26],[2,27,2,36],[2,12,2,23],[1,12,1,37]]}
[null,"Stewardship and Oversight Plan"]
[null,null,null,null,null,"2018 Total Selected Construction Cost:                 2018 STIP Construction Award Amount:"," $333,661,000 $779,100.,000",null,null,null,null,null,"Last Updated : 11/16/2016 3:10:23 PM"]
[null," 2018 STIP Project",null,null,null,null,null,null,null,null,null,null,"Design",null,null,null,null,null,null,null,null,null,null,null,"Design Build",null,null,"Construction"]
[null,"District","Job No.","County","Route","Description","Anticipated Letting Month and State FY1","Engineering ($1,000)","ROW ($1,000)","Construction ($1,000)","Total ($1,000)","Notes","Conceptual Report   **","Access Justification Requests   *","Design Exceptions   *","Value Engineering (VE)   **","Experimental Features   *","Preliminary Plans (Identify Percent Complete with FHWA Contact)   *","Bridge Type, Size, and Location (TS&L)   **","Final Plans, Specifications, and Estimate (PS&E) approval   *","Transportation Management Plan (Includes TTCP) *","Construction Authorization   *","Addenda   *","Financial plan (for approval if > $500M, for review/comment if > $100M)","Request for Qualifications (RFQ)   **","Request for Proposals (RFP)   *","Alternative Applicable Standards (AAS)   ***","Alternative Technical Concepts (ATCs) When applicable   *","Bid analysis and concurrence in award   ***","Initial Inspection","Intermediate Inspections","In-Depth Inspection","Final Inspection","Construction Change Orders   *","Value Engineering change proposals   *","Final Acceptance",null,"Project Contacts"]
[null,"NW","1I3020","Holt","IS 29","Replace bridge deck and expansion joints over the Nodaway River in the SB lane, 0.8 mile south of Rte. 59 near Oregon. ","2017-08-18",397,0,3819,{"$f":"SUM(H5:J5)","v":4216},null,"ü",null,"x",null,null,"-","-",null,"x","x",null,null,null,null,null,null,"x","x",null,"x",null,null,null,null,null,"Kevin Irving (FHWA); Wes Moore (MoDOT PM)"]
[null,"NW","1I3085","Atchison","IS 29","Resurface driving lanes and shoulders from Iowa State line to Rt. 111 near Rock Port","2017-06-23",617,0,6632,7249,null,"x",null,null,null,null,null,null,null,"x","x",null,null,null,null,null,null,null,"x",null,"x",null,null,null,null,null,"Kevin Irving (FHWA); Rick Orr (MoDOT PM)"]
[null,"NW","1I3093","Holt","IS-29","Resurface driving lanes and shoulders from Rte. W to Rte. 118 at Mound City.","2017-06-23",869,0,7769,8638,null,"x",null,"x",null,null,"x",null,null,"x","x",null,null,null,null,null,null,"x","x",null,"x","x","x","x","x",null,"Kevin Irving (FHWA); Rick Orr (MoDOT PM)"]
[null,"NW","1P3086","Dekalb","US 36","Reconstruct the horizontal curve in the westbound lane 0.2 mile east of Rt. 33 near Osborn.","2017-06-23",356,0,3137,3493,null,"x",null,"x",null,"x","x",null,"x","x","x","x",null,null,null,null,null,"x","x","x","x","x","x","x","x",null,"Kevin Irving (FHWA), Wes Moore (MoDOT PM)"]
[null,"NE","2I3160","Warren","I-70","New Interchange at Rte. MM/I-70","2017-08-18",null,null,null,null,null,"-","ü","ü",null,null,"ü","x","x","x","x",null,"x",null,null,null,"x","x","x","x","x","x","x","x","x",null,"Felix Gozalez (FHWA;  Chris Knapp (PM)"]
[null,"NE","3P2226","Marion","US 61","Pavement/ADA Transition Plan improvements from 0.4 mile north of Rte. 168 to just north of Warren Barrett Drive in Hannibal. $743,000 Statewide TAP Funds.","2017-10-01",446,9,5197,{"$f":"SUM(H10:J10)","v":5652},null,null,null,"x",null,null,"x",null,null,"x",null,null,null,null,null,null,null,null,null,null,null,"x","x","x","x",null,"Felix Gozalez (FHWA);  Jerad Noland (PM)"]
[null,"NE","3P2209B","Pike","US54","Replace Champ Clark Bridge over Mississippi River at Louisiana. Design/Build project.$10,000,000 TIGER funds. IDOT responsible for 50% of project cost.","2017-07-01",3959,4000,60255,{"$f":"SUM(H11:J11)","v":68214},null,"x",null,"x","x","x","x","x","x","x","x","x","x","x","x","x","x","x","x","x","x","x","x","x","x",null,"Felix Gozalez (FHWA);  Keith Killen & Brandi Balwin (PM)"]
[null,"KC","3I3009","Saline","IS 70","Bridge improvements at Rte. 65. Project involves bridge A0203. ","2018-01-01",355,0,2564,2919,null,"ü",null,"x",null,null,"-","-",null,"x","x",null,null,null,null,null,null,"x","x",null,"x",null,null,null,null,null,"Kevin Irving (FHWA);  Rich Shipley (MoDOT PM)"]
[null,"KC","4I1597C","Jackson","IS 70","Interchange improvements at I-435 within the limits of Kansas City. Project involves bridges A0990, A0991, A0992, A0993.","2017-10-01",8307,10,36141,{"$f":"SUM(H13:J13)","v":44458},null,"x","x","x","x","x","x","x","x","x","x","x",null,null,null,null,"x","x","x","x","x","x","x","x","x",null,"Kevin Irving (FHWA); Lee Ann Kell (MoDOT PM)"]
[null,"KC","4I3168","Jackson","IS 470","Bridge improvements at various locations from Blue Ridge Blvd. to I-70. Project involves twin bridges A1349, A1346, A1347, A2145, A2147, A2149, A2150, A2443, and single","2017-06-17",1113,0,9896,11009,null,null,null,null,null,null,null,null,null,"x","x",null,null,null,null,null,null,"x","x",null,"x",null,null,null,null,null,"Kevin Irving (FHWA)"]
[null,"KC","4I3199","Jackson","Over I-70","Bridge improvements at Pittman Road, Crysler Street, and Phelps Road over I-70. Project involves bridges L0971, L0974, and L0977. $184,000 from Statewide TAP Funds.","2018-02-01",1698,10,7144,8852,null,null,null,"x",null,null,"x","x",null,"x","x",null,null,null,null,null,null,"x","x",null,"x",null,null,null,null,null,"Kevin Irving (FHWA"]
[null,"KC","4P3130","Clay","MO 291","Bridge Improvements over Shoal Creek.  Project involves twin bridges A2505. ","2017-11-01",823,0,6527,{"$f":"SUM(H16:J16)","v":7350},null,null,null,null,null,null,"x","x",null,"x","x",null,null,null,null,null,null,"x","x",null,"x",null,null,null,null,null,"Kevin Irving (FHWA)"]
[null,"CD","5S3162","Laclede","OR-44","Bridge improvements over the Gasconade River. Project involves bridge G0245.","2018-04-01",1028,100,4311,{"$f":"SUM(H17:J17)","v":5439},null,"x",null,"x",null,null,"x","x","x","x","x","x",null,null,null,null,null,"x","x",null,null,"x","x","x","x",null,"Charles Pursley (FHWA)"]
[null,"SL","6I2418","St. Charles","I-70","Scoping for interchange improvements at Rte. K. Future Cost Share project with O'Fallon.  Maximum Cost Share funds $3,878,533. Project involves bridge L0710.","2017-08-01",963,1483,11732,{"$f":"SUM(H18:J18)","v":14178},null,null,"ü","ü",null,"x","ü",null,"x","x","x","x",null,null,null,null,null,"x","x","x",null,"x","x","x","x",null,"Dawn Perkins (FHWA); Tim Schroeder (MoDOT PM)"]
[null,"SL","6I3020B","St. Louis","I-270","Pavement and bridge improvements on the I-270 North Corridor on disconnected sections in north county. Potential Design Build.",2018,12001,0,106636,{"$f":"SUM(H19:J19)","v":118637},null,"x","x","x","x","x","x","x","x","x","x","x","x","x","x","x",null,"x","x","x","x","x","x","x","x",null,"Dawn Perkins (FHWA); Lisa Kuntz (MoDOT AE), Wesley Stephen (MoDOT PM)"]
[null,"SL","6I3109","St. Charles","I-70","Pavement improvements from Rte. 94 in St. Charles County to east of I-270 (McKelvey Road) in St. Louis County.","2017-11-01",262,0,4097,{"$f":"SUM(H20:J20)","v":4359},null,"x",null,"x",null,null,"x",null,null,"x","x",null,null,null,null,null,null,null,null,null,"x",null,"x","x",null,null,"Dawn Perkins (FHWA); Tim Schroeder (MoDOT PM)"]
[null,"SL","6I3116\n0443116","Franklin","I-44","Bridge improvements on eastbound bridge over Rte. 50. Project involves bridge L0931.  Combo w/ 6S3163","2017-12-01",271,0,3170,3441,null,"x",null,"x",null,null,"x",null,null,"x","x",null,null,null,null,null,null,null,null,null,"x",null,"x","x",null,null,"Dawn Perkins (FHWA);  Shirley Norris (PM)"]
[null,"SL","6I3149","St. Louis City","I-55","Bridge improvements from Virginia Avenue to Arsenal Street. Involves bridges A1079, A1080, A1082, A1083, A1084, A1085, and A1086.","2017-10-01",1551,0,12771,14322,null,"x",null,"x",null,null,"x",null,null,"x","x",null,null,null,null,null,null,null,null,null,"x",null,"x","x",null,null,"Dawn Perkins (FHWA); Jeff Bohler (MoDOT PM)"]
[null,"SL","6I3150","St. Louis City","I-44","Bridge improvements from Kingshighway Boulevard to 39th Street. Involves bridges A2386, A2163, A2164, A2165, A2600 and A2255.","2018-01-01",3863,0,26481,30344,null,"ü",null,"ü",null,null,"x",null,null,"x","x",null,null,null,null,null,null,null,null,null,"x",null,"x","x",null,null,"Dawn Perkins (FHWA); Jeff Bohler (MoDOT PM)"]
[null,"SL","6I3156","St. Louis","I-70","Interchange improvements at Rte. U. Project involves bridge A6233.","2018-01-01",513,0,3199,3712,null,"x","x","x",null,"x","x","x","x","x","x","x",null,null,null,null,null,"x","x","x",null,"x","x","x","x",null,"Dawn Perkins (FHWA); Lisa Kuntz (MoDOT AE), Lee Hillner (MoDOT PM)"]
[null,"SL","6I3165","St. Louis","I-70","Pavement improvements from Springdale Avenue to Union Boulevard.","2017-12-01",704,0,5316,6020,null,"x",null,"x",null,null,"x",null,null,"x","x",null,null,null,null,null,null,null,null,null,"x",null,"x","x",null,null,"Dawn Perkins (FHWA); Lisa Kuntz (MoDOT AE), Lee Hillner (MoDOT PM)"]
[null,"SL","6I3169\n0444197","St. Louis","I-44","Pavement improvements east of Murdoch Avenue to Rte. 141.","2017-10-01",1904,0,16667,18571,null,"x",null,"x",null,null,"x",null,null,"x","x",null,null,null,null,null,null,null,null,null,"x",null,"x","x",null,null,"Dawn Perkins (FHWA); Karen Yeomans (MoDOT AE), Tom Montes (MoDOT PM)"]
[null,"SL","6I3182\n0641086","St. Charles","I-64","Pavement and bridge improvements to ramps at interchange with I-70 and Rte. 61. Project involves bridges L0428 and L0624.","2018-01-01",80,0,1413,1493,null,"x",null,"x",null,null,"x",null,null,"x","x",null,null,null,null,null,null,null,null,null,"x",null,"x","x",null,null,"Dawn Perkins (FHWA); Tim Schroeder (MoDOT PM)"]
[null,"SL","6I3189","Franklin","I-44","Pavement improvements from Rte. 30 to the Crawford County line.","2018-05-01",2550,0,33019,35569,null,"x",null,"x","x",null,"x",null,null,"x","x",null,null,null,null,null,null,null,null,null,"x",null,"x","x",null,null,"Dawn Perkins (FHWA);  Shirley Norris (PM)"]
[null,"SL","6I3201","St. Charles","I-70","Construct new interchange at David Hoekel Pkwy MM 206","2017-09-01","to be programmed",null,null,null,null,"-","ü","ü",null,"x","ü","x","x","x","x","x",null,null,null,null,null,"x","x","x",null,"x","x","x","x",null,"Dawn Perkins (FHWA; Tim Schroeder (MoDOT PM)"]
[null,"SL","6I3205","St. Louis City","I-70","Relocate Carrie Ave/Broadway off ramp","2017-06-01","to be programmed",null,null,null,null,"ü","ü","x",null,null,"x",null,null,"x","x",null,null,null,null,null,null,null,null,null,"x",null,"x","x",null,null,"Dawn Perkins (FHWA); Jeff Bohler (MoDOT PM)"]
[null,"SL","6S3124","St. Louis","MO 340","Add auxiliary lane and extend left turn lane from Swingley Road to outer road eastbound I-64 ramps. $870,000 CMAQ Funds and $217,000 private developer funds. Involves bridge A1681.","2017-06-01",146,0,970,1116,null,"ü","ü","-",null,"x","x",null,null,"x","x",null,null,null,null,null,null,null,null,null,"x",null,"x","x",null,null,"Dawn Perkins (FHWA); Karen Yeomans (MoDOT AE), Tom Montes (MoDOT PM)"]
[null,"SL","6S3125","St. Louis","MO 340","Add dual left turn lanes on Rte. 340 at Chesterfield Parkway East and West, and add right turn lane on I-64 westbound off ramp. $1,470,000 CMAQ funds and $368,000 private developer funds.","2017-06-01",199,297,1382,1878,null,"ü","ü","-",null,"x","x",null,null,"x","x",null,null,null,null,null,null,null,null,null,"x",null,"x","x",null,null,"Dawn Perkins (FHWA); Karen Yeomans (MoDOT AE), Tom Montes (MoDOT PM)"]
[null,"SL","6S3163\n0443115","Franklin","St. Marys Road","Replace bridge on St. Mary's Road over I-44. Project involves bridge LO868.  Combo w/ 6I3116","2017-12-01",202,0,1389,1591,null,"x",null,"x",null,null,"x",null,null,"x","x",null,null,null,null,null,null,null,null,null,"x",null,"x","x",null,null,"Dawn Perkins (FHWA);  Shirley Norris (PM)"]
[null,"SW","7I3073","Jsaper","IS 44","Pavement improvements on various sections from 1.25 miles east of Rte. 37 to 0.5 mile east of the Jasper County line and from 1 mile west of Rte. 97 to 1.15 miles east of Rtes. Z and O near Halltown.","2017-11-01",993,0,12877,13870.06,null,"x",null,"x",null,null,"x",null,null,"x",null,null,null,null,null,null,null,null,null,null,"x",null,"x","x",null,null,"Charles Pursley (FHWA); Sean Matlock (MoDOT PM)"]
[null,"SW","7P3000","Jasper","IS 49","Bridge improvements over the BNSF Railroad and Spring River. Project involves bridges A3556 and A3557.","2017-12-01",718,0,3677,4395,null,"x",null,"x",null,null,"x",null,null,"x","x",null,null,null,null,null,null,"x",null,null,"x","x","x","x","x",null,"Charles Pursley (FHWA); Sean Matlock (MoDOT PM)"]
[null,"SW","8P2293","Greene","US 65","Replace SB bridge over I-44 in Springfield. $166,134.42 MO108 SAFETEA-LU earmark. ","2017-11-01",939,0,3612,{"$f":"SUM(H36:J36)","v":4551},null,null,null,"x",null,"x","x","x",null,"x","x",null,null,null,null,null,null,"x","x",null,null,"x","x","x","x",null,"Charles Pursley (FHWA); Don Saiko (MoDOT PM)"]
[null,"SW","8P3101","Christian","BU 65","Safety and capacity improvements on South Street from 19th Street to Rte. 14 in Ozark.","2018-05-01",1038,25,5616,6678.56,null,"ü",null,"x",null,null,"ü",null,null,"x",null,null,null,null,null,null,null,"x","x",null,null,"x","x","x","x",null,"Charles Pursley (FHWA); Kristi Bachman (MoDOT PM)"]
[null,"SE","9P3239","Perry","MO 51","Preparation of location study and environmental document for bridge improvements over Mississippi River at Chester.",2018,null,null,null,null,null,"x",null,"x","x","x","x","x","x","x","x","x","x","x","x","x","x","x","x","x","x","x","x","x","x",null,"Felix Gonzalez (FHWA)"]
[null,null,null,null,null,null,null,null,null,null,null,{"$f":"K39*0.8*1000","v":0},"LEGEND"]
[null,null,null,null,null,"L0135."]
[null,null,null,null,null,null,null,null,null,null,null,null,null,"x",null,"Action requiring FHWA involvement",null,null,null,null,null,null,null,null,null,null,"*",null,"Submittal requires FHWA approval"]
[]
[null,null,null,null,null,null,null,null,null,null,null,null,null,"ü",null," Action completed",null,null,null,null,null,null,null,null,null,null,"**",null,"Submittal for FHWA review/comment"]
[]
[null,null,null,null,null,null,null,null,null,null,null,null,null,"-",null," No FHWA approvals/actions were required",null,null,null,null,null,null,null,null,null,null,"***",null,"Submittal requires FHWA concurrence"]
[null,null,null,null,null,null,null,null,null,null,null,null,null,null,null,null,null,null,null,null,null,null,null,null,null,null,null,null,"The anticipated  letting month may change based on the project schedule and progress"]
[null,null,null,null,null,null,null,null,null,null,null,null,null,"ü",null,"Additional FHWA approval action taken",null,null,null,null,null,null,null,null,null,null,1]

{"sheet":"2019","index":3,"n_rows":28,"n_cols":38,"rows_kept":28,"cut":false,"hidden":false,"merged":[[26,26,27,26],[16,38,16,44],[17,38,17,44],[19,12,19,37],[0,1,0,37],[2,27,2,36],[1,12,1,37],[1,1,1,4],[1,6,1,7],[2,1,2,11],[2,12,2,23],[2,24,2,26],[26,28,27,37]]}
[null,"Stewardship and Oversight Plan"]
[null,null,null,null,null,"2019 Total Selected Construction Cost:                 2019 STIP Construction Award Amount:","$102,905,000 $672,800,000",null,null,null,null,null,"Last Updated : 11/16/2016 3:10:23 PM"]
[null," 2019 STIP Project",null,null,null,null,null,null,null,null,null,null,"Design",null,null,null,null,null,null,null,null,null,null,null,"Design Build",null,null,"Construction"]
[null,"District","Job No.","County","Route","Description","Anticipated Letting Month and State FY1","Engineering ($1,000)","ROW ($1,000)","Construction ($1,000)","Total ($1,000)","Notes","Conceptual Report   **","Access Justification Requests   *","Design Exceptions   *","Value Engineering (VE)   **","Experimental Features   *","Preliminary Plans (Identify Percent Complete with FHWA Contact)   *","Bridge Type, Size, and Location (TS&L)   **","Final Plans, Specifications, and Estimate (PS&E) approval   *","Transportation Management Plan (Includes TTCP) *","Construction Authorization   *","Addenda   *","Financial plan (for approval if > $500M, for review/comment if > $100M)","Request for Qualifications (RFQ)   **","Request for Proposals (RFP)   *","Alternative Applicable Standards (AAS)   ***","Alternative Technical Concepts (ATCs) When applicable   *","Bid analysis and concurrence in award   ***","Initial Inspection","Intermediate Inspections","In-Depth Inspection","Final Inspection","Construction Change Orders   *","Value Engineering change proposals   *","Final Acceptance",null,"Project Contacts"]
[null,"NW","1I3017","Harrison","IS 35","Resurface roadway from Rt. N, at Eagleville, to Rt. 136 at Bethany.  Exclude concrete pavement in the southbound lanes north of Bethany.","2018-10-19",896,0,5835,{"$f":"SUM(H5:J5)","v":6731},null,"x",null,null,null,null,null,null,null,"x","x",null,null,null,null,null,null,"x","x",null,"x",null,null,null,null,null,"Kevin Irving (FHWA); Wes Moore (MoDOT PM)"]
[null,"NW","1S3129","Buchanan","Rt. 116 over I-29","Replace bridge over the Tarkio River, 0.6 miles east of Rt. 59 near Fairfax.  Project involves bridge L0447.","2018-09-19",189,0,1061,1250,null,"x",null,null,null,null,null,null,null,"x","x",null,null,null,null,null,null,"x","x",null,"x",null,null,null,null,null,"Kevin Irving (FHWA);, Rick Orr (MoDOT PM)"]
[null,"NE","3P2213","Lincoln",61,"Replace bridges on northbound and southbound lanes over Cuivre River 1.7 miles north of Rte. 47 near Troy. Project involves twin bridges A2601.","2019-01-01",1489,0,11362,12851,null,null,null,"x",null,null,"x",null,"x","x",null,null,null,null,null,null,null,null,"x",null,null,"x","x","x","x",null,"Felix Gonzlez (FHWA); Kim Trainor (PM)"]
[null,"KC","4I2337","Jackson","IS 435","Bridge and corridor improvements from the Kansas State line to just west of I-49.  Project involves twin bridges A1240, A1662, A1427, and A0610.  Potential Design/Build project.","2019-01-01",7740,0,53057,60802,null,"x","x","x","x","x","x","x","x","x","x","x",null,"x","x","x","x","x","x","x","x","x","x","x","x",null,"Kevin Irving (FHWA); Mark Fisher (MoDOT PM)"]
[null,"KC","4I3119","Jackson","IS 470","Pavement improvements from Raytown Road in Kansas City to 39th Street in Independence.  $1,739,000 Open Container Funds.","2019-01-01",908,0,9721,10529,null,null,null,null,null,null,null,null,null,"x","x",null,null,null,null,null,null,null,"x",null,"x",null,null,null,null,null,"Kevin Irving (FHWA) "]
[null,"KC","4P2237","Jackson","IS 49","Conversion of the outer roads of I-49 to two-way traffic on the east outer road from Rt. 150 to Blue Ridge Boulevard and on the west outer road from Blue Ridge Boulevard to 0.5 mile north of Rt. 150 in Grandview.","N/A","N/A","N/A","N/A","N/A",null,"x","x","x","x","x","x","x","x","x","x","x",null,null,null,null,"x","x","x","x","x","x","x","x","x",null,"Kevin Irving (FHWA); Mark Fisher (MoDOT PM)"]
[null,"KC","4S3085","Clay","US 169","Bridge Improvements over the Missouri River.  Project involves the Broadway Bridge A4649.","2018-10-01",2727,null,10821,13548,null,"x","x","x","x","x","x","x","x","x","x","x",null,null,null,null,null,"x","x","x","x","x","x","x","x",null,"Kevin Irving (FHWA)"]
[null,"CD","5I3000","Cooper","IS-70","Partial repainting of bridge and replacement of expansion devices over the Missouri River. Project involves bridge L0962.",2019,1918,0,12462,14280.39,null,"x",null,"x",null,"x","x",null,null,"x",null,null,null,null,null,null,null,null,"x",null,null,"x","x",null,"x",null,"Charles Pursley (FHWA)"]
[null,"CD","5P3015","Cole","Dix Rd","Bridge improvements at Dix Road over Rte. 50 in Jefferson City. Project involves bridge A1187.",2019,100,0,975,{"$f":"SUM(H13:J13)","v":1075},null,"x",null,"x",null,null,"x",null,"x","x",null,"x",null,null,null,null,null,null,"x",null,null,"x","x","x","x",null,"Charles Pursley (FHWA), Mike Dusenberg (MoDOT PM)"]
[null,"SL","6I3034","St. Louis City","I-44","Pavement and bridge improvements from west of Kingshighway Blvd to I-55 Project involves bridge A2258.",2019,1665,0,21796,23461,null,"x",null,"x",null,null,"x",null,null,"x",null,null,null,null,null,null,null,null,null,null,"x",null,"x","x",null,null,"Dawn Perkins (FHWA); Jeff Bohler (MoDOT PM)"]
[null,"SL","6S3048\nS500034","St. Louis","MO 180","ADA and pavement improvements from I-270 to I-170.","2018-11-01",1154,515,16251,17920,null,"x",null,"x",null,"x","x",null,"x","x","x","x",null,null,null,null,null,"x","x","x","x","x","x","x","x",null,"Dawn Perkins (FHWA); Lee Hilner (MoDOT PM)"]
[null,"SL","6S3049\nS500033","St. Louis","MO 180","Pavement and ADA improvements from I-170 to St. Louis City limits.","2018-09-01",1487,515,9001,11003,null,"x",null,"x",null,"x","x",null,"x","x","x","x",null,null,null,null,null,"x","x","x","x","x","x","x","x",null,"Dawn Perkins (FHWA); Lee Hilner (MoDOT PM)"]
[null,"SW","7I3083","Barton","IS-49","Pavement improvements from Rte. 160 to I-44. Length 30.73 mi.","2019-01-01",1026,0,14626,15651.5674,null,"x",null,"x",null,null,"x",null,null,"x",null,null,null,null,null,null,null,null,null,null,"x",null,"x","x",null,null,"Charles Pursley (FHWA); Sean Matlock (MoDOT PM)"]
[null,"SW","8P3080","Greene","US 65","Pavement improvements from 0.1 mile north of Valley Water Mill Road to Rte. 744 (Kearney Street) and from 0.5 mile south of Rte. D (Sunshine Street) to Rte. 60 (James River Freeway). Length 4.68 mi.","2018-11-01",733,0,9776,10509.193499999999,null,"x",null,"x",null,null,"x",null,"x","x","x","x",null,null,null,null,null,"x","x",null,null,null,"x","x","x",null,"Charles Pursley (FHWA);  Kristi Bachman (MoDOT PM)"]
[null,"SE","9P3233","Ste. Genevieve",61,"Pavement improvements south of Rte. OO to north of Rte. 177","2019-01-01",670,0,7263,7933,null,null,null,"x",null,null,"x",null,"x","x",null,null,null,null,null,null,null,null,"x",null,null,"x","x","x","x",null,"Felix Gonzalez (FHWA)"]
[null,null,null,null,null,null,null,null,null,null,null,{"$f":"#REF!*0.8*1000","v":{"$error":"#REF!"}},"LEGEND"]
[]
[null,null,null,null,null,null,null,null,null,null,null,null,null,"x",null,"Action requiring FHWA involvement",null,null,null,null,null,null,null,null,null,null,"*",null,"Submittal requires FHWA approval"]
[]
[null,null,null,null,null,null,null,null,null,null,null,null,null,"ü",null," Action completed",null,null,null,null,null,null,null,null,null,null,"**",null,"Submittal for FHWA review/comment"]
[]
[null,null,null,null,null,null,null,null,null,null,null,null,null,"-",null," No FHWA approvals/actions were required",null,null,null,null,null,null,null,null,null,null,"***",null,"Submittal requires FHWA concurrence"]
[null,null,null,null,null,null,null,null,null,null,null,null,null,null,null,null,null,null,null,null,null,null,null,null,null,null,1,null,"The anticipated  letting month may change based on the project schedule and progress"]
[null,null,null,null,null,null,null,null,null,null,null,null,null,"ü",null,"Additional FHWA approval action taken"]

{"sheet":"2020","index":4,"n_rows":20,"n_cols":38,"rows_kept":20,"cut":false,"hidden":false,"merged":[[18,28,19,37],[18,26,19,26],[11,12,11,37],[0,1,0,37],[1,1,1,4],[1,6,1,7],[1,12,1,37],[2,1,2,11],[2,12,2,23],[2,24,2,26],[2,27,2,36]]}
[null,"Stewardship and Oversight Plan"]
[null,null,null,null,null,"2020 Total Selected Construction Cost:                 2020 STIP Construction Award Amount:","  $56,203,000 $214,600,000",null,null,null,null,null,"Last Updated : 11/16/2016 3:10:23 PM"]
[null," 2020 STIP Project",null,null,null,null,null,null,null,null,null,null,"Design",null,null,null,null,null,null,null,null,null,null,null,"Design Build",null,null,"Construction"]
[null,"District","Job No.","County","Route","Description","Anticipated Letting Month and State FY1","Engineering ($1,000)","ROW ($1,000)","Construction ($1,000)","Total ($1,000)","Notes","Conceptual Report   **","Access Justification Requests   *","Design Exceptions   *","Value Engineering (VE)   **","Experimental Features   *","Preliminary Plans (Identify Percent Complete with FHWA Contact)   *","Bridge Type, Size, and Location (TS&L)   **","Final Plans, Specifications, and Estimate (PS&E) approval   *","Transportation Management Plan (Includes TTCP) *","Construction Authorization   *","Addenda   *","Financial plan (for approval if > $500M, for review/comment if > $100M)","Request for Qualifications (RFQ)   **","Request for Proposals (RFP)   *","Alternative Applicable Standards (AAS)   ***","Alternative Technical Concepts (ATCs) When applicable   *","Bid analysis and concurrence in award   ***","Initial Inspection","Intermediate Inspections","In-Depth Inspection","Final Inspection","Construction Change Orders   *","Value Engineering change proposals   *","Final Acceptance",null,"Project Contacts"]
[null,"NW","1I3099","Holt","IS 29","Bridge improvements in the northbound and southbound lanes over Kimsey Creek and Rte. E near Mound City. Project involves bridges A1770 and A1771","2019-08-21",415,0,3856,{"$f":"SUM(H5:J5)","v":4271},null,"x",null,"x",null,null,"-","-","x","x","x","x",null,null,null,null,null,"x","x",null,"x","x","x","x","x",null,"Kevin Irving (FHWA); Wes Moore (MoDOT PM)"]
[null,"NE","2P3095","Audrain","MO 22","Pavement improvements from 0.1 mile west of Rte. E in Audrain County near Mexico to Rte. F in Boone County.","2019-01-01",123,0,1716,{"$f":"SUM(H6:J6)","v":1839},null,"x",null,"x",null,null,"x",null,null,"x","x",null,null,null,null,null,null,"x",null,null,"x",null,"x","x","x",null,"Felix Gonzlez (FHWA); Chris Knapp (PM)"]
[null,"NE","3I2195","Montgomery","IS-70","Replace bridge over Loutre River 2.2 miles west of Rte. 161 near Danville. Project involves bridge A0971.","2019-01-01",467,0,4611,5078,"Recommended full Federal Oversight - F. Gonzalez","x",null,"x",null,"x","x","x","x","x","x","x",null,null,null,null,"x","x","x",null,"x",null,"x","x","x",null,"Felix Gonzlez (FHWA);  Chris Knapp (MoDOT PM)"]
[null,"CD","5I3137","Callaway","IS-70","Pavement improvements on eastbound and westbound lanes from the bridge over Cedar Creek to east of Rte. 54",2020,444,0,6538,6982,null,"x",null,"x",null,null,"x",null,null,"x",null,null,null,null,null,null,null,null,null,null,"x",null,"x","x",null,null,"Charles Pursley (FHWA)"]
[null,"SL","6I2415B","St. Louis","Various","Create Bus Rapid Transit (BRT) and High Occupancy Vehicle (HOV) lanes at various locations in St. Louis County.",2020,134,0,1115,{"$f":"SUM(H9:J9)","v":1249},null,"x","x","x",null,"x","x","x","x","x","x","x",null,null,null,null,"x",null,"x",null,"x",null,"x","x","x",null,"Dawn Perkins (FHWA); Lee Hilner (MoDOT PM)"]
[null,"SL","6I3195","St. Charles","I-70","Pavement improvements from west of Wentzville Parkway to Lake St. Louis Boulevard.","2019-07-01",1056,0,11246,12302,null,"x",null,"x",null,null,"x",null,null,"x",null,null,null,null,null,null,null,null,null,null,"x",null,"x","x",null,null,"Dawn Perkins (FHWA); Tim Schroeder (MoDOT PM)"]
[null,"SW","7P0601","McDonald",71,"Roadway improvements from Pineville to the Arkansas State line (Bella Vista).Construction funding from 7P2157. $12,017,701 SAFETEA-LU earmark DEMO ID MO118. Amendment 3 new major project.","2019-09-01",13473,4610,20147,38230,null,"x",null,"x","x","x","x","x","x","x","x","x",null,null,null,null,"x","x","x","x",null,"x","x","x","x",null,"Charles Pursley (FHWA);  Kristi Bachman (MoDOT PM)"]
[null,null,null,null,null,null,null,null,null,null,null,{"$f":"#REF!*0.8*1000","v":{"$error":"#REF!"}},"LEGEND"]
[]
[null,null,null,null,null,null,null,null,null,null,null,null,null,"x",null,"Action requiring FHWA involvement",null,null,null,null,null,null,null,null,null,null,"*",null,"Submittal requires FHWA approval"]
[]
[null,null,null,null,null,null,null,null,null,null,null,null,null,"ü",null," Action completed",null,null,null,null,null,null,null,null,null,null,"**",null,"Submittal for FHWA review/comment"]
[]
[null,null,null,null,null,null,null,null,null,null,null,null,null,"-",null," No FHWA approvals/actions were required",null,null,null,null,null,null,null,null,null,null,"***",null,"Submittal requires FHWA concurrence"]
[null,null,null,null,null,null,null,null,null,null,null,null,null,null,null,null,null,null,null,null,null,null,null,null,null,null,1,null,"The anticipated  letting month may change based on the project schedule and progress"]
[null,null,null,null,null,null,null,null,null,null,null,null,null,"ü",null,"Additional FHWA approval action taken"]

{"sheet":"2021","index":5,"n_rows":16,"n_cols":38,"rows_kept":16,"cut":false,"hidden":false,"merged":[[14,28,15,37],[14,26,15,26],[7,12,7,37],[0,1,0,37],[1,1,1,4],[1,6,1,7],[1,12,1,37],[2,1,2,11],[2,12,2,23],[2,24,2,26],[2,27,2,36]]}
[null,"Stewardship and Oversight Plan"]
[null,null,null,null,null,"2021 Total Selected Construction Cost:\n2021 STIP Construction Award Amount:","  $21,923,000\n$167,000,000",null,null,null,null,null,"Last Updated : 11/16/2016 3:10:23 PM"]
[null," 2021 STIP Project",null,null,null,null,null,null,null,null,null,null,"Design",null,null,null,null,null,null,null,null,null,null,null,"Design Build",null,null,"Construction"]
[null,"District","Job No.","County","Route","Description","Anticipated Letting Month and State FY1","Engineering ($1,000)","ROW ($1,000)","Construction ($1,000)","Total ($1,000)","Notes","Conceptual Report   **","Access Justification Requests   *","Design Exceptions   *","Value Engineering (VE)   **","Experimental Features   *","Preliminary Plans (Identify Percent Complete with FHWA Contact)   *","Bridge Type, Size, and Location (TS&L)   **","Final Plans, Specifications, and Estimate (PS&E) approval   *","Transportation Management Plan (Includes TTCP) *","Construction Authorization   *","Addenda   *","Financial plan (for approval if > $500M, for review/comment if > $100M)","Request for Qualifications (RFQ)   **","Request for Proposals (RFP)   *","Alternative Applicable Standards (AAS)   ***","Alternative Technical Concepts (ATCs) When applicable   *","Bid analysis and concurrence in award   ***","Initial Inspection","Intermediate Inspections","In-Depth Inspection","Final Inspection","Construction Change Orders   *","Value Engineering change proposals   *","Final Acceptance",null,"Project Contacts"]
[null,"SL","6I1896","St Louis","IS-270","Bridge replacement at the Rte. N interchange. Project involves bridge L0745. Potential\nDesign/Build project.",2021,1302,0,8194,{"$f":"SUM(H5:J5)","v":9496},null,"x","x","x",null,"x","x","x","x","x","x","x",null,"x","x","x",null,"x","x","x","x","x","x","x","x",null,"Dawn Perkins (FHWA); Lee Hilner (MoDOT PM)"]
[null,"SL","6I2233","St Louis","IS-270","Bridge replacement at the Rte. AC interchange. Project involves bridge A0223. Potential Design/Build project.",2021,938,0,7684,{"$f":"SUM(H6:J6)","v":8622},null,"x","x","x",null,"x","x","x","x","x","x","x",null,"x","x","x",null,"x","x","x","x","x","x","x","x",null,"Dawn Perkins (FHWA); Lee Hilner (MoDOT PM)"]
[null,"SE","9P3218","Wayne",34,"Bridge improvements over Cedar Creek. Project involves bridges A0067 and A7532.","2021-01-01",911,240,6045,7196,null,"x",null,"x",null,null,null,null,"x","x",null,null,null,null,null,null,null,null,"x",null,null,"x","x","x","x",null,"Felix Gonzalez (FHWA)"]
[null,null,null,null,null,null,null,null,null,null,null,{"$f":"#REF!*0.8*1000","v":{"$error":"#REF!"}},"LEGEND"]
[]
[null,null,null,null,null,null,null,null,null,null,null,null,null,"x",null,"Action requiring FHWA involvement",null,null,null,null,null,null,null,null,null,null,"*",null,"Submittal requires FHWA approval"]
[]
[null,null,null,null,null,null,null,null,null,null,null,null,null,"ü",null," Action completed",null,null,null,null,null,null,null,null,null,null,"**",null,"Submittal for FHWA review/comment"]
[]
[null,null,null,null,null,null,null,null,null,null,null,null,null,"-",null," No FHWA approvals/actions were required",null,null,null,null,null,null,null,null,null,null,"***",null,"Submittal requires FHWA concurrence"]
[null,null,null,null,null,null,null,null,null,null,null,null,null,null,null,null,null,null,null,null,null,null,null,null,null,null,1,null,"The anticipated  letting month may change based on the project schedule and progress"]
[null,null,null,null,null,null,null,null,null,null,null,null,null,"ü",null,"Additional FHWA approval action taken"]

{"sheet":"Sheet1","index":6,"n_rows":0,"n_cols":0,"rows_kept":0,"cut":false,"hidden":false,"merged":[]}